[Event "*** Titled Tuesday Blitz"]
[Site "Chess.com"]
[Date "2021.03.02"]
[Round "7"]
[White "Bodnar_Mykola"]
[Black "Rodalquilar"]
[Result "0-1"]
[WhiteElo "2495"]
[BlackElo "2644"]
[TimeControl "180+1"]
[EndTime "11:19:35 PST"]
[Termination "Rodalquilar won by resignation"]

1. d4 {[%clk 0:03:00.9]} 1... d5 {[%clk 0:02:59.9]} 2. c4 {[%clk 0:02:59.9]}
2... e6 {[%clk 0:03:00.4]} 3. Nf3 {[%clk 0:03:00]} 3... Nf6 {[%clk 0:02:59.9]}
4. g3 {[%clk 0:03:00.1]} 4... Be7 {[%clk 0:03:00.4]} 5. Bg2 {[%clk 0:02:58.5]}
5... O-O {[%clk 0:03:01]} 6. O-O {[%clk 0:02:58.9]} 6... dxc4 {[%clk 0:03:01.6]}
7. Qc2 {[%clk 0:02:59.1]} 7... a6 {[%clk 0:03:02.2]} 8. a4 {[%clk 0:02:59]} 8...
Bd7 {[%clk 0:03:02.3]} 9. Bg5 {[%clk 0:02:59.6]} 9... Nc6 {[%clk 0:02:34.2]} 10.
Rd1 {[%clk 0:02:41.7]} 10... b5 {[%clk 0:02:32.2]} 11. Bxf6 {[%clk 0:02:37.1]}
11... Bxf6 {[%clk 0:02:09.6]} 12. Ne5 {[%clk 0:02:11.7]} 12... Nxd4 {[%clk
0:02:09.7]} 13. Rxd4 {[%clk 0:01:32.9]} 13... Bxe5 {[%clk 0:02:09.8]} 14. Rh4
{[%clk 0:01:33.8]} 14... f5 {[%clk 0:02:10]} 15. axb5 {[%clk 0:01:32.7]} 15...
g5 {[%clk 0:02:06.7]} 16. Rxc4 {[%clk 0:01:31.4]} 16... Bxb5 {[%clk 0:02:06.9]}
17. Rc5 {[%clk 0:01:27.7]} 17... Bd4 {[%clk 0:01:44.5]} 18. Rxb5 {[%clk
0:01:26.2]} 18... Rb8 {[%clk 0:01:28.4]} 19. Rxb8 {[%clk 0:01:24.8]} 19... Qxb8
{[%clk 0:01:29.3]} 20. Nc3 {[%clk 0:01:24.9]} 20... Qb6 {[%clk 0:01:18.3]} 21.
e3 {[%clk 0:01:24]} 21... Bg7 {[%clk 0:01:18.6]} 22. Na4 {[%clk 0:01:12.5]}
22... Qb4 {[%clk 0:01:03.4]} 23. Nc5 {[%clk 0:01:09.1]} 23... Rb8 {[%clk
0:00:42.3]} 24. Nxa6 {[%clk 0:01:00.9]} 24... Qxb2 {[%clk 0:00:42.4]} 25. Qxb2
{[%clk 0:01:01.1]} 25... Rxb2 {[%clk 0:00:43.2]} 26. Nxc7 {[%clk 0:00:57.7]}
26... Rc2 {[%clk 0:00:39.1]} 27. Ra8+ {[%clk 0:00:57.1]} 27... Kf7 {[%clk
0:00:39.7]} 28. Ra7 {[%clk 0:00:57.3]} 28... Be5 {[%clk 0:00:32.6]} 29. Nb5+
{[%clk 0:00:55.2]} 29... Kf6 {[%clk 0:00:32.7]} 30. Nd4 {[%clk 0:00:55.1]} 30...
Rc1+ {[%clk 0:00:25.9]} 31. Bf1 {[%clk 0:00:55.2]} 31... h5 {[%clk 0:00:26.5]}
32. Ra6 {[%clk 0:00:53.9]} 32... Bxd4 {[%clk 0:00:27]} 33. exd4 {[%clk
0:00:54.8]} 33... Rd1 {[%clk 0:00:27.8]} 34. Ra4 {[%clk 0:00:47.4]} 34... f4
{[%clk 0:00:27.2]} 35. h4 {[%clk 0:00:38.4]} 35... f3 {[%clk 0:00:15.8]} 36.
hxg5+ {[%clk 0:00:33.5]} 36... Kxg5 {[%clk 0:00:16.7]} 37. d5 {[%clk 0:00:29.7]}
37... e5 {[%clk 0:00:16.5]} 38. Re4 {[%clk 0:00:25.1]} 38... Kf5 {[%clk
0:00:16.7]} 39. Re3 {[%clk 0:00:24.2]} 39... e4 {[%clk 0:00:17.2]} 40. d6 {[%clk
0:00:23.4]} 40... Rxd6 {[%clk 0:00:17]} 41. Bh3+ {[%clk 0:00:18.4]} 41... Ke5
{[%clk 0:00:17.5]} 42. g4 {[%clk 0:00:17.8]} 42... Rg6 {[%clk 0:00:17]} 43. Kh2
{[%clk 0:00:16.9]} 43... hxg4 {[%clk 0:00:17.5]} 44. Bf1 {[%clk 0:00:17.5]}
44... Kf4 {[%clk 0:00:17.6]} 45. Ra3 {[%clk 0:00:16.4]} 45... Rb6 {[%clk
0:00:11.8]} 46. Ra8 {[%clk 0:00:16]} 46... Rh6+ {[%clk 0:00:06.9]} 47. Kg1
{[%clk 0:00:16]} 47... Rf6 {[%clk 0:00:07.3]} 48. Re8 {[%clk 0:00:14.2]} 48...
Rh6 {[%clk 0:00:05]} 49. Rf8+ {[%clk 0:00:14.1]} 49... Ke5 {[%clk 0:00:04.7]}
50. Ba6 {[%clk 0:00:14.2]} 50... Kd4 {[%clk 0:00:04.1]} 51. Rd8+ {[%clk
0:00:13.9]} 51... Ke5 {[%clk 0:00:03.7]} 52. Bb7 {[%clk 0:00:14.1]} 52... e3
{[%clk 0:00:01.8]} 53. Re8+ {[%clk 0:00:14.3]} 53... Kf4 {[%clk 0:00:01.4]} 54.
Rxe3 {[%clk 0:00:14.6]} 54... Rb6 {[%clk 0:00:02.1]} 55. Bc8 {[%clk 0:00:13.7]}
55... Rb1+ {[%clk 0:00:02.2]} 56. Kh2 {[%clk 0:00:13.9]} 56... g3+ {[%clk
0:00:02.9]} 57. fxg3+ {[%clk 0:00:11.9]} 57... Kxe3 {[%clk 0:00:03.4]} 58. Ba6
{[%clk 0:00:11.6]} 58... f2 {[%clk 0:00:03.5]} 0-1

[Event "*** Titled Tuesday Blitz"]
[Site "Chess.com"]
[Date "2021.03.02"]
[Round "7"]
[White "andriipalchuk"]
[Black "igorcadilhac"]
[Result "0-1"]
[WhiteElo "2535"]
[BlackElo "2424"]
[TimeControl "180+1"]
[EndTime "11:19:36 PST"]
[Termination "igorcadilhac won by checkmate"]

1. d4 {[%clk 0:03:00.9]} 1... d5 {[%clk 0:02:59.8]} 2. c4 {[%clk 0:02:53.4]}
2... e6 {[%clk 0:03:00.2]} 3. Nc3 {[%clk 0:02:53.7]} 3... Nf6 {[%clk 0:03:00.3]}
4. Nf3 {[%clk 0:02:49.3]} 4... Be7 {[%clk 0:03:00.3]} 5. Bf4 {[%clk 0:02:48.7]}
5... O-O {[%clk 0:03:00.6]} 6. e3 {[%clk 0:02:49.2]} 6... b6 {[%clk 0:03:01]} 7.
Rc1 {[%clk 0:02:48]} 7... Bb7 {[%clk 0:02:51.8]} 8. a3 {[%clk 0:02:46.1]} 8...
c5 {[%clk 0:02:45.6]} 9. dxc5 {[%clk 0:02:43.8]} 9... bxc5 {[%clk 0:02:45.8]}
10. Be2 {[%clk 0:02:40.6]} 10... Nc6 {[%clk 0:02:42.1]} 11. O-O {[%clk
0:02:28.3]} 11... Qb6 {[%clk 0:02:14]} 12. cxd5 {[%clk 0:02:21.1]} 12... exd5
{[%clk 0:02:13.2]} 13. Na4 {[%clk 0:02:16.3]} 13... Qa5 {[%clk 0:02:08.9]} 14.
Nd2 {[%clk 0:01:41]} 14... Rfd8 {[%clk 0:02:02.4]} 15. Nxc5 {[%clk 0:01:39]}
15... Bxc5 {[%clk 0:01:58.3]} 16. Nb3 {[%clk 0:01:38.8]} 16... Qb6 {[%clk
0:01:57.2]} 17. Nxc5 {[%clk 0:01:32]} 17... d4 {[%clk 0:01:57.4]} 18. Nxb7
{[%clk 0:01:27.6]} 18... Qxb7 {[%clk 0:01:55.5]} 19. Bf3 {[%clk 0:01:13.6]}
19... Rac8 {[%clk 0:01:51.6]} 20. Qa4 {[%clk 0:01:05.7]} 20... Nd5 {[%clk
0:01:48.5]} 21. Bg5 {[%clk 0:00:58]} 21... f6 {[%clk 0:01:44.7]} 22. Rc5 {[%clk
0:00:48.7]} 22... Nce7 {[%clk 0:01:33.2]} 23. Rxc8 {[%clk 0:00:27.6]} 23... Qxc8
{[%clk 0:01:34.1]} 24. Bf4 {[%clk 0:00:22.5]} 24... Nxf4 {[%clk 0:01:33.2]} 25.
exf4 {[%clk 0:00:23.4]} 25... Qb8 {[%clk 0:01:31.2]} 26. b4 {[%clk 0:00:21.4]}
26... d3 {[%clk 0:01:26.2]} 27. g3 {[%clk 0:00:21.6]} 27... Nf5 {[%clk
0:01:24.8]} 28. Qb3+ {[%clk 0:00:21.4]} 28... Kh8 {[%clk 0:01:24.2]} 29. Rd1
{[%clk 0:00:22]} 29... Qb5 {[%clk 0:01:16.4]} 30. Kg2 {[%clk 0:00:21.6]} 30...
d2 {[%clk 0:01:12.6]} 31. Qc3 {[%clk 0:00:20.7]} 31... Qd7 {[%clk 0:01:09]} 32.
Bg4 {[%clk 0:00:18]} 32... Qd5+ {[%clk 0:01:06.6]} 33. Bf3 {[%clk 0:00:18.3]}
33... Qd6 {[%clk 0:01:04.6]} 34. Be4 {[%clk 0:00:17.7]} 34... Ne7 {[%clk
0:00:59.9]} 35. Bb1 {[%clk 0:00:18.2]} 35... Nd5 {[%clk 0:00:56.6]} 36. Qc2
{[%clk 0:00:15.4]} 36... g6 {[%clk 0:00:43.3]} 37. Kg1 {[%clk 0:00:16.1]} 37...
Nb6 {[%clk 0:00:42.4]} 38. Qb2 {[%clk 0:00:15.5]} 38... Nc4 {[%clk 0:00:41.4]}
39. Qc3 {[%clk 0:00:15.6]} 39... Re8 {[%clk 0:00:34.7]} 40. Bc2 {[%clk
0:00:13.9]} 40... Rc8 {[%clk 0:00:20.2]} 41. Bb3 {[%clk 0:00:12]} 41... Qe6
{[%clk 0:00:15.7]} 42. Bxc4 {[%clk 0:00:10.1]} 42... Rxc4 {[%clk 0:00:14.1]} 43.
Qxd2 {[%clk 0:00:10]} 43... Rc7 {[%clk 0:00:09.9]} 44. Qd3 {[%clk 0:00:10.4]}
44... Kg7 {[%clk 0:00:09.9]} 45. Kg2 {[%clk 0:00:10.2]} 45... Qc6+ {[%clk
0:00:09.5]} 46. Qd5 {[%clk 0:00:10.3]} 46... Qa6 {[%clk 0:00:09.2]} 47. Rd3
{[%clk 0:00:09.8]} 47... Re7 {[%clk 0:00:08.7]} 48. Qd6 {[%clk 0:00:09.6]} 48...
Qb7+ {[%clk 0:00:08.2]} 49. Qd5 {[%clk 0:00:10.2]} 49... Qa6 {[%clk 0:00:08.5]}
50. h4 {[%clk 0:00:10]} 50... h5 {[%clk 0:00:08.2]} 51. f5 {[%clk 0:00:10]}
51... g5 {[%clk 0:00:03.6]} 52. hxg5 {[%clk 0:00:10.9]} 52... fxg5 {[%clk
0:00:04]} 53. Qd4+ {[%clk 0:00:10.4]} 53... Kh7 {[%clk 0:00:03]} 54. f6 {[%clk
0:00:10]} 54... Rf7 {[%clk 0:00:03]} 55. Qe4+ {[%clk 0:00:10.5]} 55... Kh6
{[%clk 0:00:03.5]} 56. Rd8 {[%clk 0:00:07.5]} 56... Qxf6 {[%clk 0:00:04]} 57.
Re8 {[%clk 0:00:07.5]} 57... Qxf2+ {[%clk 0:00:03.6]} 58. Kh3 {[%clk 0:00:07.8]}
58... g4+ {[%clk 0:00:03.8]} 59. Kh4 {[%clk 0:00:08.3]} 59... Qh2# {[%clk
0:00:04.4]} 0-1

[Event "*** Titled Tuesday Blitz"]
[Site "Chess.com"]
[Date "2021.03.02"]
[Round "7"]
[White "frenchpin"]
[Black "Taktikmonster"]
[Result "1-0"]
[WhiteElo "2511"]
[BlackElo "2370"]
[TimeControl "180+1"]
[EndTime "11:19:37 PST"]
[Termination "frenchpin won by checkmate"]

1. e4 {[%clk 0:03:00.9]} 1... c5 {[%clk 0:02:59.9]} 2. Nf3 {[%clk 0:03:01]} 2...
d6 {[%clk 0:03:00.3]} 3. d4 {[%clk 0:03:01]} 3... cxd4 {[%clk 0:03:01.2]} 4.
Nxd4 {[%clk 0:03:01.6]} 4... Nf6 {[%clk 0:03:01.7]} 5. f3 {[%clk 0:03:02.1]}
5... e5 {[%clk 0:03:00.9]} 6. Bb5+ {[%clk 0:03:02]} 6... Bd7 {[%clk 0:02:55.8]}
7. Bxd7+ {[%clk 0:03:02.1]} 7... Nbxd7 {[%clk 0:02:51.9]} 8. Nf5 {[%clk
0:03:02.1]} 8... Nb6 {[%clk 0:02:47.8]} 9. Bg5 {[%clk 0:02:55.9]} 9... d5 {[%clk
0:02:45.2]} 10. exd5 {[%clk 0:02:25.6]} 10... Nbxd5 {[%clk 0:02:22.5]} 11. c4
{[%clk 0:02:13.8]} 11... Bb4+ {[%clk 0:02:11.8]} 12. Kf1 {[%clk 0:01:30.5]}
12... h6 {[%clk 0:01:13.7]} 13. cxd5 {[%clk 0:01:23.2]} 13... hxg5 {[%clk
0:01:12.6]} 14. Qa4+ {[%clk 0:01:23.1]} 14... Qd7 {[%clk 0:01:08.7]} 15. Qxb4
{[%clk 0:01:22.9]} 15... Qxf5 {[%clk 0:01:07]} 16. Nc3 {[%clk 0:01:16.3]} 16...
Qd3+ {[%clk 0:01:00.4]} 17. Kf2 {[%clk 0:01:11.1]} 17... Qd2+ {[%clk 0:00:49.2]}
18. Kf1 {[%clk 0:01:11]} 18... Qd3+ {[%clk 0:00:47.9]} 19. Kf2 {[%clk
0:00:57.5]} 19... Qd2+ {[%clk 0:00:47.9]} 20. Kf1 {[%clk 0:00:52.6]} 20... O-O-O
{[%clk 0:00:25.4]} 21. Rd1 {[%clk 0:00:44.8]} 21... Qc2 {[%clk 0:00:23]} 22. d6
{[%clk 0:00:34]} 22... Kb8 {[%clk 0:00:21.3]} 23. Qb3 {[%clk 0:00:18.4]} 23...
Qxb3 {[%clk 0:00:17.3]} 24. axb3 {[%clk 0:00:19.3]} 24... Rd7 {[%clk 0:00:17.2]}
25. Ke2 {[%clk 0:00:14.7]} 25... Rhd8 {[%clk 0:00:17.2]} 26. h4 {[%clk 0:00:15]}
26... gxh4 {[%clk 0:00:16.6]} 27. Rxh4 {[%clk 0:00:14.7]} 27... Rxd6 {[%clk
0:00:16.5]} 28. Rxd6 {[%clk 0:00:14.9]} 28... Rxd6 {[%clk 0:00:17.4]} 29. Rh8+
{[%clk 0:00:14.8]} 29... Kc7 {[%clk 0:00:14.2]} 30. Nb5+ {[%clk 0:00:15.2]}
30... Kc6 {[%clk 0:00:14.5]} 31. Nxd6 {[%clk 0:00:16.1]} 31... Kxd6 {[%clk
0:00:15.2]} 32. Rf8 {[%clk 0:00:14]} 32... Ke6 {[%clk 0:00:12.2]} 33. Rb8 {[%clk
0:00:13.5]} 33... b6 {[%clk 0:00:08.8]} 34. Rb7 {[%clk 0:00:13.7]} 34... Nd5
{[%clk 0:00:06.9]} 35. Rxa7 {[%clk 0:00:13.8]} 35... Nf4+ {[%clk 0:00:05.7]} 36.
Kf1 {[%clk 0:00:13.6]} 36... Nd3 {[%clk 0:00:05.9]} 37. Ra4 {[%clk 0:00:09.2]}
37... Nxb2 {[%clk 0:00:04.3]} 38. Rb4 {[%clk 0:00:09.3]} 38... Kd5 {[%clk
0:00:04.7]} 39. Rxb6 {[%clk 0:00:08.8]} 39... f5 {[%clk 0:00:04.1]} 40. Rb7
{[%clk 0:00:08.9]} 40... g5 {[%clk 0:00:04]} 41. Rg7 {[%clk 0:00:08.8]} 41... g4
{[%clk 0:00:03.2]} 42. fxg4 {[%clk 0:00:08.3]} 42... f4 {[%clk 0:00:04.1]} 43.
g5 {[%clk 0:00:07.3]} 43... e4 {[%clk 0:00:04.7]} 44. g6 {[%clk 0:00:07.3]}
44... e3 {[%clk 0:00:04.9]} 45. Re7 {[%clk 0:00:06.2]} 45... Kd6 {[%clk
0:00:01.7]} 46. g7 {[%clk 0:00:05.9]} 46... Kxe7 {[%clk 0:00:02.2]} 47. g8=Q
{[%clk 0:00:06.3]} 47... Nd3 {[%clk 0:00:01.9]} 48. Qg7+ {[%clk 0:00:04.8]}
48... Kd8 {[%clk 0:00:01.1]} 49. Qd4+ {[%clk 0:00:03.9]} 49... Ke8 {[%clk
0:00:01.7]} 50. Qxd3 {[%clk 0:00:04.8]} 50... Ke7 {[%clk 0:00:01.6]} 51. Qe4+
{[%clk 0:00:05.2]} 51... Kf7 {[%clk 0:00:02.5]} 52. Qxf4+ {[%clk 0:00:06]} 52...
Ke7 {[%clk 0:00:03.4]} 53. Qxe3+ {[%clk 0:00:06.2]} 53... Kd7 {[%clk 0:00:04.3]}
54. Ke2 {[%clk 0:00:06.5]} 54... Kc6 {[%clk 0:00:05.2]} 55. Kf3 {[%clk
0:00:07.4]} 55... Kb5 {[%clk 0:00:06.1]} 56. Kf4 {[%clk 0:00:08.3]} 56... Kb4
{[%clk 0:00:07]} 57. Qd3 {[%clk 0:00:08.4]} 57... Ka3 {[%clk 0:00:07.9]} 58. b4+
{[%clk 0:00:08.7]} 58... Kb2 {[%clk 0:00:08.8]} 59. b5 {[%clk 0:00:08.8]} 59...
Ka2 {[%clk 0:00:09.7]} 60. Qc4+ {[%clk 0:00:07.9]} 60... Ka3 {[%clk 0:00:10.6]}
61. b6 {[%clk 0:00:07.2]} 61... Kb2 {[%clk 0:00:09.9]} 62. b7 {[%clk 0:00:07.6]}
62... Ka3 {[%clk 0:00:10.8]} 63. Ke3 {[%clk 0:00:07.8]} 63... Kb2 {[%clk
0:00:11.5]} 64. b8=Q+ {[%clk 0:00:07.6]} 64... Ka3 {[%clk 0:00:12.4]} 65. Qa6#
{[%clk 0:00:07.6]} 1-0

[Event "*** Titled Tuesday Blitz"]
[Site "Chess.com"]
[Date "2021.03.02"]
[Round "7"]
[White "AlexeiShirov"]
[Black "atwalcb"]
[Result "1/2-1/2"]
[WhiteElo "2822"]
[BlackElo "2570"]
[TimeControl "180+1"]
[EndTime "11:19:38 PST"]
[Termination "Game drawn by repetition"]

1. e4 {[%clk 0:03:00.9]} 1... d6 {[%clk 0:03:00.1]} 2. d4 {[%clk 0:03:00.3]}
2... Nf6 {[%clk 0:03:00.7]} 3. Nc3 {[%clk 0:03:00]} 3... Nbd7 {[%clk 0:03:01.1]}
4. g4 {[%clk 0:02:58.1]} 4... h6 {[%clk 0:02:58.3]} 5. h3 {[%clk 0:02:54.8]}
5... e5 {[%clk 0:02:58.3]} 6. Nge2 {[%clk 0:02:53.5]} 6... b5 {[%clk 0:02:57.1]}
7. a3 {[%clk 0:02:51.3]} 7... a6 {[%clk 0:02:56.7]} 8. Bg2 {[%clk 0:02:50.2]}
8... Bb7 {[%clk 0:02:56.2]} 9. O-O {[%clk 0:02:47.1]} 9... Be7 {[%clk
0:02:47.1]} 10. f4 {[%clk 0:02:39.9]} 10... O-O {[%clk 0:02:43.8]} 11. g5 {[%clk
0:02:27.1]} 11... Nh5 {[%clk 0:02:29.8]} 12. fxe5 {[%clk 0:02:21.2]} 12... dxe5
{[%clk 0:02:28.5]} 13. Bf3 {[%clk 0:02:21]} 13... exd4 {[%clk 0:02:23.3]} 14.
Nd5 {[%clk 0:02:16.8]} 14... Bxd5 {[%clk 0:02:05]} 15. exd5 {[%clk 0:02:15.6]}
15... Bxg5 {[%clk 0:02:05.7]} 16. Bxh5 {[%clk 0:02:14.1]} 16... Ne5 {[%clk
0:01:49.4]} 17. Nxd4 {[%clk 0:01:59.6]} 17... Qxd5 {[%clk 0:01:43.9]} 18. Bxg5
{[%clk 0:01:52.6]} 18... hxg5 {[%clk 0:01:44.8]} 19. Bf3 {[%clk 0:01:37]} 19...
Qc5 {[%clk 0:01:43.9]} 20. Bxa8 {[%clk 0:01:35.2]} 20... Rxa8 {[%clk 0:01:38.3]}
21. Kg2 {[%clk 0:01:32.3]} 21... Rd8 {[%clk 0:01:33.7]} 22. c3 {[%clk
0:01:31.5]} 22... Qd5+ {[%clk 0:01:32.8]} 23. Kh2 {[%clk 0:01:18.6]} 23... g4
{[%clk 0:01:17.1]} 24. hxg4 {[%clk 0:01:03.1]} 24... Qe4 {[%clk 0:01:17.3]} 25.
Qe1 {[%clk 0:00:47.7]} 25... Nxg4+ {[%clk 0:01:17.4]} 26. Kg1 {[%clk 0:00:46]}
26... Qg6 {[%clk 0:01:00.4]} 27. Qg3 {[%clk 0:00:44]} 27... Rd5 {[%clk
0:00:59.3]} 28. Rae1 {[%clk 0:00:40.8]} 28... Rg5 {[%clk 0:00:52.6]} 29. Re8+
{[%clk 0:00:27.4]} 29... Kh7 {[%clk 0:00:52.5]} 30. Nf3 {[%clk 0:00:21.8]} 30...
Rh5 {[%clk 0:00:51.8]} 31. Rfe1 {[%clk 0:00:18.4]} 31... Qb6+ {[%clk 0:00:43.4]}
32. Nd4 {[%clk 0:00:18]} 32... Rg5 {[%clk 0:00:31.2]} 33. R1e4 {[%clk
0:00:16.1]} 33... Ne5 {[%clk 0:00:23.6]} 34. Qxg5 {[%clk 0:00:08.6]} 34... Nf3+
{[%clk 0:00:24]} 35. Kg2 {[%clk 0:00:08.1]} 35... Nxg5 {[%clk 0:00:24.9]} 36.
R4e5 {[%clk 0:00:06]} 36... Qg6 {[%clk 0:00:21.9]} 37. Kf2 {[%clk 0:00:05.7]}
37... f6 {[%clk 0:00:13.9]} 38. R5e7 {[%clk 0:00:05.8]} 38... Nh3+ {[%clk
0:00:11.2]} 39. Ke3 {[%clk 0:00:05.9]} 39... c5 {[%clk 0:00:11.6]} 40. Ne6
{[%clk 0:00:05.1]} 40... Qh6+ {[%clk 0:00:09.4]} 41. Kf3 {[%clk 0:00:05]} 41...
Qh5+ {[%clk 0:00:08.9]} 42. Kg3 {[%clk 0:00:04.8]} 42... Qe5+ {[%clk 0:00:04.4]}
43. Kxh3 {[%clk 0:00:04.8]} 43... Qe3+ {[%clk 0:00:03]} 44. Kh2 {[%clk
0:00:03.6]} 44... Qf2+ {[%clk 0:00:02.7]} 45. Kh1 {[%clk 0:00:03.7]} 45... Qf1+
{[%clk 0:00:02.6]} 46. Kh2 {[%clk 0:00:03.8]} 46... Qf2+ {[%clk 0:00:03.5]} 47.
Kh3 {[%clk 0:00:04]} 47... Qf3+ {[%clk 0:00:03.9]} 48. Kh4 {[%clk 0:00:04]}
48... Qh1+ {[%clk 0:00:01.8]} 49. Kg3 {[%clk 0:00:03.8]} 49... Qg1+ {[%clk
0:00:02.1]} 50. Kf4 {[%clk 0:00:03.9]} 50... Qf2+ {[%clk 0:00:02]} 51. Ke4
{[%clk 0:00:04.1]} 51... Qg2+ {[%clk 0:00:02.2]} 52. Ke3 {[%clk 0:00:04.2]}
52... Qg1+ {[%clk 0:00:02.1]} 53. Ke4 {[%clk 0:00:04.3]} 53... Qg2+ {[%clk
0:00:02.4]} 54. Kd3 {[%clk 0:00:03.9]} 54... Qf3+ {[%clk 0:00:02.7]} 55. Kc2
{[%clk 0:00:03.9]} 55... Qe2+ {[%clk 0:00:03]} 56. Kc1 {[%clk 0:00:04.1]} 56...
Qe1+ {[%clk 0:00:03.2]} 57. Kc2 {[%clk 0:00:04.4]} 57... Qe2+ {[%clk 0:00:03.7]}
58. Kc1 {[%clk 0:00:04.7]} 58... Qe1+ {[%clk 0:00:04.2]} 59. Kc2 {[%clk
0:00:05]} 59... Qe2+ {[%clk 0:00:04.7]} 1/2-1/2

[Event "*** Titled Tuesday Blitz"]
[Site "Chess.com"]
[Date "2021.03.02"]
[Round "7"]
[White "Oligan22"]
[Black "Julianos82"]
[Result "1-0"]
[WhiteElo "2523"]
[BlackElo "2351"]
[TimeControl "180+1"]
[EndTime "11:19:38 PST"]
[Termination "Oligan22 won by resignation"]

1. e4 {[%clk 0:03:00.9]} 1... c5 {[%clk 0:02:59]} 2. Nf3 {[%clk 0:03:00.7]} 2...
b6 {[%clk 0:02:58.7]} 3. d4 {[%clk 0:02:59.4]} 3... cxd4 {[%clk 0:02:59.6]} 4.
Nxd4 {[%clk 0:03:00.1]} 4... Bb7 {[%clk 0:02:59.5]} 5. Nc3 {[%clk 0:03:00.6]}
5... a6 {[%clk 0:02:59.4]} 6. Bg5 {[%clk 0:02:59.3]} 6... Qc7 {[%clk 0:02:58.6]}
7. Qd2 {[%clk 0:02:50.2]} 7... e6 {[%clk 0:02:53.3]} 8. a3 {[%clk 0:02:33]} 8...
Nc6 {[%clk 0:02:45]} 9. O-O-O {[%clk 0:02:30.1]} 9... Nf6 {[%clk 0:02:31.7]} 10.
f3 {[%clk 0:02:23.7]} 10... Bc5 {[%clk 0:02:20.3]} 11. Nb3 {[%clk 0:02:20.6]}
11... Be7 {[%clk 0:02:16.3]} 12. Bf4 {[%clk 0:02:19]} 12... e5 {[%clk
0:02:06.3]} 13. Bg5 {[%clk 0:02:17.9]} 13... Na5 {[%clk 0:01:50]} 14. Kb1 {[%clk
0:02:05.4]} 14... Nxb3 {[%clk 0:01:41.4]} 15. cxb3 {[%clk 0:02:06.3]} 15... Rd8
{[%clk 0:01:04.4]} 16. Bc4 {[%clk 0:01:54.5]} 16... b5 {[%clk 0:01:02.1]} 17.
Bxf6 {[%clk 0:01:50.5]} 17... bxc4 {[%clk 0:01:01.3]} 18. Bxe7 {[%clk
0:01:33.8]} 18... Kxe7 {[%clk 0:01:02.2]} 19. bxc4 {[%clk 0:01:34.2]} 19... Rhe8
{[%clk 0:00:43.8]} 20. Nd5+ {[%clk 0:01:23]} 20... Bxd5 {[%clk 0:00:43.8]} 21.
Qxd5 {[%clk 0:01:23.9]} 21... d6 {[%clk 0:00:42.3]} 22. Rc1 {[%clk 0:01:21.7]}
22... Rb8 {[%clk 0:00:38.3]} 23. c5 {[%clk 0:01:13.8]} 23... Rec8 {[%clk
0:00:33]} 24. Rhd1 {[%clk 0:01:05.8]} 24... dxc5 {[%clk 0:00:32]} 25. Rc2 {[%clk
0:00:59.6]} 25... Rb6 {[%clk 0:00:31.3]} 26. Rdc1 {[%clk 0:00:55.9]} 26... Rc6
{[%clk 0:00:31.3]} 27. h4 {[%clk 0:00:48.1]} 27... Qd6 {[%clk 0:00:28.5]} 28.
Qc4 {[%clk 0:00:45.3]} 28... Qd4 {[%clk 0:00:27.6]} 29. Qe2 {[%clk 0:00:43.8]}
29... c4 {[%clk 0:00:26.5]} 30. Ka2 {[%clk 0:00:42.9]} 30... c3 {[%clk 0:00:22]}
31. b3 {[%clk 0:00:32.4]} 31... a5 {[%clk 0:00:21.2]} 32. Qb5 {[%clk 0:00:29.4]}
32... Rc5 {[%clk 0:00:18.4]} 33. Qb7+ {[%clk 0:00:22.1]} 33... R8c7 {[%clk
0:00:18.1]} 34. Qb8 {[%clk 0:00:22.6]} 34... a4 {[%clk 0:00:17.5]} 35. bxa4
{[%clk 0:00:21.2]} 35... Qxa4 {[%clk 0:00:16.2]} 36. Qb4 {[%clk 0:00:21.8]}
36... Qc6 {[%clk 0:00:14.8]} 37. Rxc3 {[%clk 0:00:19.9]} 37... Kd6 {[%clk
0:00:14.3]} 38. R1c2 {[%clk 0:00:16.2]} 38... h5 {[%clk 0:00:13.2]} 39. Rc4
{[%clk 0:00:15.9]} 39... g6 {[%clk 0:00:12.9]} 40. Rc1 {[%clk 0:00:15.7]} 40...
f6 {[%clk 0:00:11.4]} 41. R1c2 {[%clk 0:00:15.9]} 41... Rc8 {[%clk 0:00:09.6]}
42. Rc1 {[%clk 0:00:15.8]} 42... Rc7 {[%clk 0:00:09.5]} 43. a4 {[%clk
0:00:16.3]} 43... Rc8 {[%clk 0:00:09.4]} 44. Ka3 {[%clk 0:00:16.5]} 44... Rc7
{[%clk 0:00:09.8]} 45. R1c2 {[%clk 0:00:16.2]} 45... Rc8 {[%clk 0:00:09.8]} 46.
g3 {[%clk 0:00:16.7]} 46... Rc7 {[%clk 0:00:10]} 47. f4 {[%clk 0:00:17.3]} 47...
Rc8 {[%clk 0:00:10.2]} 48. fxe5+ {[%clk 0:00:17.4]} 48... fxe5 {[%clk
0:00:10.8]} 49. Rf2 {[%clk 0:00:16.8]} 49... Kd7 {[%clk 0:00:09.3]} 50. Rf7+
{[%clk 0:00:15.9]} 50... Ke8 {[%clk 0:00:08.9]} 51. Rxc5 {[%clk 0:00:14.3]}
51... Qxc5 {[%clk 0:00:08.3]} 52. Qxc5 {[%clk 0:00:14.5]} 52... Rxc5 {[%clk
0:00:09.1]} 53. Rg7 {[%clk 0:00:14.9]} 53... Rc3+ {[%clk 0:00:09.3]} 54. Kb4
{[%clk 0:00:14.4]} 54... Rxg3 {[%clk 0:00:10.2]} 55. Kc5 {[%clk 0:00:12.7]}
55... g5 {[%clk 0:00:10.1]} 56. hxg5 {[%clk 0:00:12.3]} 56... h4 {[%clk
0:00:10.5]} 57. Kd6 {[%clk 0:00:12.3]} 57... h3 {[%clk 0:00:10.3]} 58. Ke6
{[%clk 0:00:11.9]} 58... Kf8 {[%clk 0:00:10]} 59. Rh7 {[%clk 0:00:12.2]} 59...
Rxg5 {[%clk 0:00:10.1]} 60. Rxh3 {[%clk 0:00:12]} 60... Rg6+ {[%clk 0:00:10.5]}
61. Kxe5 {[%clk 0:00:11.8]} 61... Rg1 {[%clk 0:00:10.5]} 62. Ra3 {[%clk
0:00:11.6]} 62... Ra1 {[%clk 0:00:10.5]} 63. Rxa1 {[%clk 0:00:10.8]} 1-0